bitfinex-derivatives/quotes_SOLF0:USTF0_20260302
["timestamp","ask_amount","ask_price","bid_price","bid_amount"]
[1772464681648,12.93952493,88.089,87.959,12.23319487]
[1772464681956,12.93952493,88.089,87.962,12.23319487]
[1772464682347,12.93952493,88.089,87.964,12.23319487]
[1772464682544,12.93952493,88.089,87.971,12.23319487]
[1772464682752,12.93952493,88.119,87.992,12.23319487]
[1772464683252,12.93952493,88.119,88.011,12.23319487]
[1772464683456,12.93952493,88.119,88.0,62.0]
[1772464683457,12.93952493,88.149,88.035,12.23319487]
[1772464683654,12.93952493,88.149,88.042,13.04459697]
[1772464683957,12.93952493,88.149,88.053,13.04459697]
[1772464684354,12.93952493,88.149,88.027,13.04459697]
[1772464684549,12.52305073,88.119,87.991,13.04459697]
[1772464684957,12.52305073,88.089,87.991,13.04459697]
[1772464685555,12.52305073,88.089,87.964,13.04459697]
[1772464686058,12.52305073,88.085,87.964,13.04459697]
[1772464686455,19.5221246,88.08,87.964,13.04459697]
[1772464686757,12.52305073,88.079,87.964,13.04459697]
[1772464687261,12.52305073,88.079,87.985,13.04459697]
[1772464687451,19.5221246,88.11,87.985,13.04459697]
[1772464687650,12.52305073,88.109,87.985,13.04459697]
[1772464688261,12.52305073,88.109,87.987,13.04459697]
[1772464688859,12.52305073,88.109,87.99,13.04459697]
[1772464689462,12.52305073,88.109,87.964,13.04459697]
[1772464689758,12.52305073,88.109,87.985,13.04459697]
[1772464689963,10.216,88.108,87.985,13.04459697]
[1772464690161,12.52305073,88.079,87.957,13.04459697]
[1772464692259,10.22,88.078,87.957,13.04459697]
[1772464692466,10.22,88.078,87.892,279.89368579]
[1772464692467,12.52305073,88.059,87.931,13.04459697]
[1772464692961,12.52305073,88.029,87.931,13.04459697]
[1772464693360,12.52305073,88.029,87.893,13.04459697]
[1772464693959,227.14,88.11,87.893,13.04459697]
[1772464693960,11.71900698,87.999,87.893,13.04459697]
[1772464694161,11.71900698,87.969,87.831,12.88150705]
[1772464694567,11.71900698,87.969,87.832,12.88150705]
[1772464694862,11.71900698,87.997,87.851,12.88150705]
[1772464695165,11.71900698,87.982,87.851,12.88150705]
[1772464695466,11.71900698,87.977,87.851,12.88150705]
[1772464695665,11.71900698,87.959,87.851,12.88150705]
[1772464695865,11.71900698,87.957,87.851,12.88150705]
[1772464696664,11.71900698,87.952,87.851,12.88150705]
[1772464697064,11.71900698,87.947,87.805,12.88150705]
[1772464697261,12.96799677,87.939,87.805,12.88150705]
[1772464697464,12.96799677,87.933,87.805,12.88150705]
[1772464697668,12.96799677,87.909,87.805,12.88150705]
[1772464697965,12.96799677,87.899,87.753,12.62519343]
[1772464698172,12.96799677,87.899,87.761,12.62519343]
[1772464698366,12.96799677,87.899,87.781,12.62519343]
[1772464700260,12.96799677,87.925,87.791,12.62519343]
[1772464700462,12.96799677,87.925,87.727,9.42202206]
[1772464700463,12.96799677,87.875,87.757,12.62519343]
[1772464700966,12.96799677,87.892,87.757,12.62519343]
[1772464701162,19.5221246,87.9,87.757,12.62519343]
[1772464701163,12.96799677,87.882,87.757,12.62519343]
[1772464701564,12.96799677,87.882,87.688,9.42202206]
[1772464701565,12.96799677,87.934,87.801,12.62519343]
[1772464701965,12.96799677,87.934,87.814,12.62519343]
[1772464703062,12.96799677,87.934,87.831,12.62519343]
[1772464703267,12.96799677,87.934,87.801,12.62519343]
[1772464703970,12.96799677,87.925,87.801,12.62519343]
[1772464705174,446.00197671,87.978,87.831,12.62519343]
[1772464705175,12.96799677,87.951,87.831,12.62519343]
[1772464705871,159.211,87.949,87.831,12.62519343]
[1772464706075,12.96799677,87.907,87.781,12.62519343]
[1772464706667,12.96799677,87.907,87.791,12.62519343]
[1772464706878,12.96799677,87.929,87.805,12.62519343]
[1772464707178,12.96799677,87.909,87.805,12.62519343]
[1772464707571,12.96799677,87.907,87.779,12.62519343]
[1772464707972,12.96799677,87.849,87.726,12.62519343]
[1772464708482,12.96799677,87.849,87.734,12.62519343]
[1772464708677,12.96799677,87.849,87.738,12.62519343]
[1772464708980,12.96799677,87.849,87.741,12.62519343]
[1772464710379,12.96799677,87.849,87.691,10.265]
[1772464710380,12.96799677,87.829,87.715,12.62519343]
[1772464711178,12.96799677,87.827,87.715,12.62519343]
[1772464711386,10.37625176,87.953,87.662,469.24335257]
[1772464711387,12.96799677,87.799,87.689,12.62519343]
[1772464711675,12.96799677,87.799,87.631,159.787]
[1772464711676,12.96799677,87.768,87.661,12.62519343]
[1772464712877,12.96799677,87.79,87.665,12.62519343]
[1772464713577,12.96799677,87.789,87.665,12.62519343]
[1772464714169,12.96799677,87.819,87.678,12.62519343]
[1772464714570,29.52579307,87.82,87.678,12.62519343]
[1772464714571,12.96799677,87.817,87.678,12.62519343]
[1772464715072,12.96799677,87.813,87.678,12.62519343]
[1772464716176,12.96799677,87.813,87.701,12.62519343]
[1772464716474,12.96799677,87.869,87.731,12.62519343]
[1772464716872,12.96799677,87.865,87.731,12.62519343]
[1772464717070,12.96799677,87.865,87.732,10.26]
[1772464717268,12.96799677,87.865,87.737,12.62519343]
[1772464717469,12.96799677,87.899,87.761,12.62519343]
[1772464717674,29.52579307,87.9,87.761,12.62519343]
[1772464717675,12.96799677,87.891,87.761,12.62519343]
[1772464717876,12.96799677,87.889,87.761,12.62519343]
[1772464718276,12.96799677,87.877,87.761,12.62519343]
[1772464718976,12.96799677,87.829,87.732,12.62519343]
[1772464719177,12.96799677,87.855,87.732,12.62519343]
[1772464719376,227.74,87.952,87.732,12.62519343]
[1772464719377,12.96799677,87.839,87.732,12.62519343]
[1772464719773,12.96799677,87.839,87.68,29.52579307]
[1772464719774,12.96799677,87.839,87.681,12.62519343]
[1772464719974,12.96799677,87.809,87.681,12.62519343]
[1772464720884,12.96799677,87.779,87.681,12.62519343]
[1772464721477,12.96799677,87.779,87.653,12.62519343]
[1772464721778,12.96799677,87.769,87.653,12.62519343]
[1772464722579,12.96799677,87.739,87.626,12.62519343]
[1772464722975,12.96799677,87.719,87.626,12.62519343]
[1772464723180,12.96799677,87.719,87.6,12.62519343]
[1772464724079,29.52579307,87.72,87.601,12.62519343]
[1772464724080,12.96799677,87.72,87.601,12.62519343]
[1772464724279,29.52579307,87.76,87.631,12.62519343]
[1772464724280,12.96799677,87.746,87.631,12.62519343]
[1772464725382,29.52579307,87.76,87.631,12.62519343]
[1772464725584,12.96799677,87.769,87.641,12.62519343]
[1772464726384,12.96799677,87.767,87.641,12.62519343]
[1772464726791,12.96799677,87.765,87.641,12.62519343]
[1772464727887,479.2895513,87.79,87.648,12.47414807]
[1772464728088,12.62357936,87.788,87.651,12.47414807]
[1772464728681,12.62357936,87.788,87.655,12.47414807]
[1772464729191,12.62357936,87.816,87.671,12.47414807]
[1772464729385,12.62357936,87.816,87.673,12.47414807]
[1772464729792,12.62357936,87.816,87.675,12.47414807]
[1772464730790,12.62357936,87.814,87.675,12.47414807]
[1772464731192,12.62357936,87.814,87.679,12.47414807]
[1772464732093,12.62357936,87.814,87.682,12.47414807]
[1772464732289,12.62357936,87.789,87.682,12.47414807]
[1772464736191,29.52579307,87.82,87.682,12.47414807]
[1772464736397,29.52579307,87.82,87.593,12.54626204]
[1772464736398,12.62357936,87.819,87.707,12.47414807]
[1772464736595,12.62357936,87.819,87.711,12.47414807]
[1772464737793,12.62357936,87.81,87.711,12.47414807]
[1772464738989,12.62357936,87.843,87.711,12.47414807]
[1772464739200,12.62357936,87.839,87.711,12.47414807]
[1772464739600,12.62357936,87.829,87.711,12.47414807]
[1772464739995,12.62357936,87.829,87.657,159.739]
[1772464739996,12.62357936,87.789,87.644,12.47414807]
[1772464740198,12.62357936,87.788,87.644,12.47414807]
[1772464740395,12.61606458,87.756,87.644,12.47414807]
[1772464740595,159.359,87.867,87.59,29.52579307]
[1772464740596,10.26,87.728,87.602,12.47414807]
[1772464740796,12.61606458,87.727,87.602,12.47414807]
[1772464740989,12.61606458,87.727,87.605,12.47414807]
[1772464742092,12.62357936,87.719,87.605,12.47414807]
[1772464742297,10.262,87.717,87.605,12.47414807]
[1772464742490,29.52579307,87.72,87.605,12.47414807]
[1772464742491,159.652,87.706,87.605,12.47414807]
[1772464742691,12.61198634,87.689,87.562,12.47414807]
[1772464743090,12.61198634,87.689,87.563,10.28]
[1772464743296,12.61198634,87.689,87.564,12.47414807]
[1772464743489,12.62357936,87.679,87.564,12.47414807]
[1772464743997,12.62357936,87.649,87.561,278.52988941]
[1772464744199,12.62357936,87.644,87.539,12.47414807]
[1772464744398,12.62357936,87.639,87.489,12.47414807]
[1772464744603,12.62357936,87.589,87.489,12.47414807]
[1772464745801,12.62357936,87.589,87.466,24.50186373]
[1772464746097,12.62357936,87.559,87.466,12.02771566]
[1772464747995,159.922,87.558,87.466,12.02771566]
[1772464748303,12.62357936,87.554,87.466,12.02771566]
[1772464748492,12.62357936,87.529,87.466,0.00071566]
[1772464749096,12.62357936,87.528,87.466,0.00071566]
[1772464749903,12.62357936,87.519,87.466,0.00071566]
[1772464750204,12.62357936,87.509,87.466,0.00071566]
[1772464750900,12.62357936,87.54,87.466,0.00071566]
[1772464751798,12.48388691,87.569,87.466,12.47486373]
[1772464752002,12.48388691,87.608,87.466,12.47486373]
[1772464752606,12.47254375,87.579,87.466,12.47486373]
[1772464755603,12.06949487,87.613,87.466,12.47486373]
[1772464755900,12.06949487,87.609,87.476,12.2293378]
[1772464756204,12.06949487,87.609,87.488,12.2293378]
[1772464756406,12.06949487,87.609,87.466,0.00071566]
[1772464756407,12.06949487,87.629,87.503,12.2293378]
[1772464757008,12.06949487,87.616,87.503,12.2293378]
[1772464757510,445.37903225,87.719,87.503,12.2293378]
[1772464757511,12.10125073,87.599,87.503,12.2293378]
[1772464758610,12.10125073,87.599,87.478,12.28840465]
[1772464759206,12.10125073,87.624,87.492,12.28840465]
[1772464760606,12.10125073,87.599,87.492,12.28840465]
[1772464760813,12.10125073,87.569,87.466,0.00071566]
[1772464763104,12.10125073,87.569,87.451,12.28840465]
[1772464763312,12.10125073,87.559,87.451,12.28840465]
[1772464763506,12.10125073,87.585,87.471,12.28840465]
[1772464763713,12.10125073,87.619,87.471,12.28840465]
[1772464764111,12.10125073,87.589,87.471,12.28840465]
[1772464764609,12.10125073,87.559,87.471,12.28840465]
[1772464764806,12.10125073,87.559,87.41,29.52579307]
[1772464764807,12.10125073,87.559,87.411,12.28840465]
[1772464765010,12.10125073,87.529,87.411,12.28840465]
[1772464767408,159.988,87.521,87.411,12.28840465]
[1772464767611,12.10125073,87.499,87.411,12.28840465]
[1772464767916,12.10125073,87.499,87.369,31.12334958]
[1772464767917,12.10125073,87.499,87.37,12.28840465]
[1772464768310,12.10125073,87.497,87.37,12.28840465]
[1772464768509,12.10125073,87.469,87.37,12.28840465]
[1772464769006,12.10125073,87.466,87.318,12.28840465]
[1772464769208,12.10125073,87.466,87.333,12.28840465]
[1772464769406,12.10125073,87.491,87.36,19.85946665]
[1772464769614,12.10125073,87.491,87.363,12.28840465]
[1772464770416,12.10125073,87.515,87.368,12.28840465]
[1772464770812,12.10125073,87.51,87.368,12.28840465]
[1772464771008,160.047,87.489,87.368,12.28840465]
[1772464771213,12.10125073,87.459,87.368,12.28840465]
[1772464771511,12.10125073,87.457,87.328,12.28840465]
[1772464771716,12.10125073,87.429,87.328,12.28840465]
[1772464775320,12.10125073,87.457,87.328,12.28840465]
[1772464776621,12.10125073,87.482,87.354,12.28840465]
[1772464776820,12.10125073,87.482,87.361,12.28840465]
[1772464777523,12.10125073,87.482,87.365,12.28840465]
[1772464777717,12.10125073,87.445,87.317,12.28840465]
[1772464777918,12.10125073,87.443,87.317,12.28840465]
[1772464778117,10.294,87.441,87.317,12.28840465]
[1772464778321,12.10125073,87.44,87.317,12.28840465]
[1772464778522,12.10125073,87.419,87.317,12.28840465]
[1772464778718,10.297,87.417,87.317,12.28840465]
[1772464778919,12.10125073,87.469,87.335,160.327]
[1772464779122,12.10125073,87.469,87.351,12.28840465]
[1772464779522,12.10125073,87.459,87.351,12.28840465]
[1772464782031,12.10125073,87.449,87.351,12.28840465]
[1772464783933,10.288,87.496,87.351,12.28840465]
[1772464783934,12.10125073,87.489,87.351,12.28840465]
[1772464784134,12.10125073,87.489,87.352,12.28840465]
[1772464784732,12.10125073,87.489,87.361,12.28840465]
[1772464784933,12.10125073,87.519,87.361,12.28840465]
[1772464785134,12.10125073,87.519,87.371,12.28840465]
[1772464786132,12.10125073,87.519,87.391,12.28840465]
[1772464786632,12.10125073,87.489,87.331,12.28840465]
[1772464787138,12.10125073,87.517,87.351,12.28840465]
[1772464787338,12.10125073,87.517,87.381,11.58512558]
[1772464788138,12.10125073,87.517,87.391,11.58512558]
[1772464788537,12.10125073,87.517,87.319,1.99161006]
[1772464788538,12.10125073,87.517,87.421,11.58512558]
[1772464788733,6.97083427,87.53,87.421,11.58512558]
[1772464788935,12.15591551,87.543,87.441,11.58512558]
[1772464789136,6.97083427,87.56,87.461,11.58512558]
[1772464789632,12.15591551,87.569,87.461,11.58512558]
[1772464789834,12.15591551,87.598,87.501,11.58512558]
[1772464790238,6.97083427,87.62,87.501,11.58512558]
[1772464790431,6.97083427,87.62,87.521,11.58512558]
[1772464790832,12.15591551,87.624,87.521,11.58512558]
[1772464791436,20.84869106,87.676,87.561,11.58512558]
[1772464791437,12.15591551,87.654,87.561,11.58512558]
[1772464791742,12.15591551,87.678,87.561,11.58512558]
[1772464791945,12.15591551,87.659,87.561,11.58512558]
[1772464792241,6.97083427,87.68,87.561,11.58512558]
[1772464792437,12.15591551,87.685,87.581,11.58512558]
[1772464792838,12.15591551,87.685,87.531,11.58512558]
[1772464793042,19.75038705,87.75,87.531,11.58512558]
[1772464793043,12.15591551,87.629,87.531,11.58512558]
[1772464793446,12.15591551,87.659,87.531,11.58512558]
[1772464795044,12.15591551,87.659,87.54,19.75038705]
[1772464795245,12.15591551,87.659,87.541,11.58512558]
[1772464795847,12.15591551,87.689,87.541,11.58512558]
[1772464796542,20.61670719,87.809,87.541,11.58512558]
[1772464796543,12.15591551,87.659,87.541,11.58512558]
[1772464796941,12.15591551,87.629,87.499,11.58512558]
[1772464797539,12.15591551,87.599,87.499,11.58512558]
[1772464797942,12.15591551,87.599,87.483,30.68374467]
[1772464798244,12.15591551,87.599,87.472,11.58512558]
[1772464799244,12.15591551,87.569,87.411,11.58512558]
[1772464799745,12.15591551,87.539,87.411,11.58512558]
[1772464800544,12.15591551,87.568,87.411,11.58512558]
[1772464800746,13.68012019,87.675,87.36,53.84038705]
[1772464800747,12.15591551,87.609,87.471,11.58512558]
[1772464801438,12.15591551,87.589,87.471,11.58512558]
[1772464802846,12.15591551,87.616,87.471,11.58512558]
[1772464803147,12.15591551,87.641,87.501,11.58512558]
[1772464804347,12.15591551,87.633,87.501,11.58512558]
[1772464804641,12.15591551,87.609,87.501,11.58512558]
[1772464804846,12.15591551,87.598,87.501,11.58512558]
[1772464805047,19.75038705,87.61,87.456,30.18956003]
[1772464805048,12.15591551,87.592,87.457,11.58512558]
[1772464805447,19.75038705,87.61,87.457,11.58512558]
[1772464805448,12.15591551,87.586,87.457,11.58512558]
[1772464805643,12.15591551,87.612,87.477,11.58512558]
[1772464805847,12.15591551,87.612,87.482,11.58512558]
[1772464806449,12.15591551,87.612,87.501,11.58512558]
[1772464806748,12.15591551,87.607,87.501,11.58512558]
[1772464807351,12.15591551,87.641,87.531,11.58512558]
[1772464807744,31.90630256,87.67,87.531,11.58512558]
[1772464807955,12.15591551,87.669,87.531,11.58512558]
[1772464808151,12.15591551,87.669,87.533,11.58512558]
[1772464808352,12.15591551,87.696,87.561,11.58512558]
[1772464808553,19.75038705,87.7,87.561,11.58512558]
[1772464808554,12.15591551,87.691,87.561,11.58512558]
[1772464810152,12.15591551,87.669,87.561,11.58512558]
[1772464812862,12.15591551,87.669,87.511,228.46]
[1772464812863,12.15591551,87.704,87.578,11.58512558]
[1772464813263,12.15591551,87.689,87.578,11.58512558]
[1772464813858,12.15591551,87.689,87.58,10.277]
[1772464814058,12.15591551,87.689,87.581,11.58512558]
[1772464814252,11.9359314,87.729,87.581,11.58512558]
[1772464814456,11.9359314,87.729,87.583,11.98098614]
[1772464814857,11.9359314,87.699,87.583,11.98098614]
[1772464815254,11.9359314,87.696,87.583,11.98098614]
[1772464816054,11.9359314,87.693,87.583,11.98098614]
[1772464816956,11.9359314,87.719,87.585,11.98098614]
[1772464817660,11.9359314,87.719,87.586,12.07828477]
[1772464818059,11.9359314,87.719,87.587,12.07828477]
[1772464818560,11.41110781,87.744,87.607,159.815]
[1772464818854,11.41110781,87.744,87.6,19.75038705]
[1772464818855,19.75038705,87.74,87.6,19.75038705]
[1772464819060,11.41110781,87.739,87.601,170.099]
[1772464819362,11.41110781,87.739,87.6,19.75038705]
[1772464819561,11.41110781,87.739,87.624,10.271]
[1772464819756,11.41110781,87.739,87.605,159.819]
[1772464819757,11.41110781,87.739,87.593,12.07828477]
[1772464819958,11.41110781,87.735,87.593,12.07828477]
[1772464820161,11.41110781,87.735,87.6,19.75038705]
[1772464820459,11.41110781,87.735,87.615,10.272]
[1772464820660,19.75038705,87.77,87.638,159.758]
[1772464820661,11.41110781,87.77,87.638,159.758]
[1772464820961,11.41110781,87.77,87.641,12.07828477]
[1772464821155,11.41110781,87.795,87.661,12.07828477]
[1772464821352,11.41110781,87.795,87.662,159.714]
[1772464821557,11.41110781,87.795,87.67,10.266]
[1772464821754,11.41110781,87.795,87.671,12.07828477]
[1772464822564,11.41110781,87.789,87.671,12.07828477]
[1772464822754,10.252,87.787,87.671,12.07828477]
[1772464823059,11.41110781,87.786,87.674,12.07828477]
[1772464823963,11.41110781,87.819,87.691,12.07828477]
[1772464824564,11.41110781,87.819,87.69,19.75038705]
[1772464824565,11.41110781,87.846,87.7,12.07828477]
[1772464824953,10.246,87.845,87.701,10.262]
[1772464825159,19.75038705,87.82,87.702,12.07828477]
[1772464825460,11.41110781,87.819,87.702,12.07828477]
[1772464825876,11.41110781,87.849,87.702,12.07828477]
[1772464826067,11.41110781,87.849,87.703,12.07828477]
[1772464826561,10.246,87.844,87.706,10.262]
[1772464826764,11.41110781,87.843,87.707,12.07828477]
[1772464827268,10.246,87.842,87.707,12.07828477]
[1772464827566,11.41110781,87.832,87.707,12.07828477]
[1772464827958,11.41110781,87.811,87.707,12.07828477]
[1772464828666,11.41110781,87.839,87.721,12.07828477]
[1772464829765,11.41110781,87.809,87.695,12.07828477]
[1772464830358,11.41110781,87.806,87.695,12.07828477]
[1772464831770,11.41110781,87.806,87.69,29.53709284]
[1772464831771,11.41110781,87.806,87.699,12.07828477]
[1772464832469,29.53709284,87.84,87.705,12.07828477]
[1772464832771,11.41110781,87.862,87.743,12.07828477]
[1772464834064,11.41110781,87.86,87.743,12.07828477]
[1772464834865,11.41110781,87.889,87.743,12.07828477]
[1772464835070,11.41110781,87.889,87.771,12.07828477]
[1772464835968,11.41110781,87.889,87.775,12.07828477]
[1772464836369,11.41110781,87.919,87.784,12.07828477]
[1772464836567,11.41110781,87.919,87.795,12.07828477]
[1772464837067,11.41110781,87.919,87.801,12.07828477]
[1772464837272,11.41110781,87.944,87.801,12.07828477]
[1772464837663,11.41110781,87.944,87.802,10.251]
[1772464837866,11.41110781,87.944,87.809,12.07828477]
[1772464838272,11.41110781,87.932,87.815,12.07828477]
[1772464838464,11.41110781,87.915,87.815,12.07828477]
[1772464838768,11.41110781,87.896,87.761,12.07828477]
[1772464838970,11.41110781,87.889,87.761,12.07828477]
[1772464839383,11.41110781,87.889,87.76,29.53709284]
[1772464839384,11.41110781,87.889,87.775,12.07828477]
[1772464839674,11.41110781,87.919,87.775,12.07828477]
[1772464839872,10.237,87.917,87.776,10.253]
[1772464840177,10.237,87.917,87.76,29.53709284]
[1772464840178,11.41110781,87.916,87.777,12.07828477]
[1772464840369,11.41110781,87.944,87.821,12.07828477]
[1772464840881,11.41110781,87.944,87.831,12.07828477]
[1772464841073,11.41110781,87.979,87.857,12.07828477]
[1772464841276,11.41110781,87.966,87.857,12.07828477]
[1772464841774,11.41110781,87.959,87.821,12.07828477]
[1772464841973,29.53709284,87.97,87.821,12.07828477]
[1772464841974,11.41110781,87.939,87.821,12.07828477]
[1772464842479,11.41110781,87.927,87.821,12.07828477]
[1772464843674,11.41110781,87.953,87.821,12.07828477]
[1772464844177,11.41110781,87.953,87.831,12.07828477]
[1772464844971,11.41110781,87.949,87.831,12.07828477]
[1772464846075,11.41110781,87.949,87.832,12.07828477]
[1772464846268,11.41110781,87.949,87.81,29.53709284]
[1772464846269,11.41110781,87.949,87.834,12.07828477]
[1772464846868,29.53709284,87.97,87.84,29.53709284]
[1772464847068,29.53709284,87.97,87.834,12.07828477]
[1772464847069,11.41110781,88.004,87.871,12.07828477]
[1772464847373,11.41110781,88.004,87.875,11.56683229]
[1772464847573,11.41110781,88.004,87.876,11.56683229]
[1772464847769,11.68774442,88.06,87.907,11.56683229]
[1772464847975,11.68774442,88.06,87.934,11.56683229]
[1772464848476,11.68774442,88.058,87.934,11.56683229]
[1772464848679,11.68774442,88.083,87.958,11.56683229]
[1772464849185,11.68774442,88.056,87.958,11.56683229]
[1772464849476,11.68774442,88.056,87.932,11.56683229]
[1772464849673,11.68774442,88.056,87.933,11.56683229]
[1772464850069,11.68774442,88.082,87.937,11.56683229]
[1772464850469,11.68774442,88.082,87.943,11.56683229]
[1772464850673,0.00071566,88.061,87.961,11.56683229]
[1772464850882,0.00071566,88.061,87.992,11.56683229]
[1772464851377,11.68846008,88.061,87.941,11.56683229]
[1772464851777,0.00071566,88.061,87.95,11.56683229]
[1772464852771,0.00071566,88.061,87.993,11.56683229]
[1772464852971,0.00071566,88.061,87.92,62.0]
[1772464852972,0.00071566,88.061,88.001,11.56683229]
[1772464853172,0.00071566,88.061,88.002,11.56683229]
[1772464853875,0.00071566,88.061,88.007,11.56683229]
[1772464854481,0.00071566,88.061,88.01,11.56683229]
[1772464854978,11.68774442,88.149,88.031,11.56683229]
[1772464856188,11.68774442,88.149,88.041,11.56683229]
[1772464856580,11.68774442,88.149,88.059,11.56683229]
[1772464856779,11.68774442,88.181,88.071,11.56683229]
[1772464856985,11.68774442,88.179,88.071,11.56683229]
[1772464858683,11.68774442,88.149,88.019,11.56683229]
[1772464858981,11.68774442,88.141,88.019,11.56683229]
[1772464859185,11.68774442,88.119,88.019,11.56683229]
[1772464859586,11.68774442,88.109,88.019,11.56683229]
[1772464859785,11.68774442,88.109,87.96,29.53709284]
[1772464859786,11.68774442,88.109,87.983,11.56683229]
[1772464860285,11.68774442,88.109,87.992,11.56683229]
[1772464860485,11.68774442,88.109,87.995,11.56683229]
[1772464861782,11.68774442,88.137,87.995,11.56683229]
[1772464862182,10.212,88.135,87.995,11.56683229]
[1772464862487,11.68774442,88.134,87.995,11.56683229]
[1772464863483,11.68774442,88.159,88.03,159.046]
[1772464863677,11.68774442,88.159,87.933,159.222]
[1772464863678,11.68774442,88.159,88.051,11.56683229]
[1772464865280,11.68774442,88.159,88.05,29.53709284]
[1772464865281,11.68774442,88.185,88.073,11.56683229]
[1772464866184,11.68774442,88.179,88.073,11.56683229]
[1772464866891,11.68774442,88.174,88.073,11.56683229]
[1772464867584,11.68774442,88.174,88.024,11.56683229]
[1772464868195,1.97504519,88.215,88.024,11.56683229]
[1772464868196,11.68774442,88.149,88.024,11.56683229]
[1772464868585,11.68774442,88.149,88.032,11.56683229]
[1772464869495,11.68774442,88.129,88.032,11.56683229]
[1772464870389,11.68774442,88.129,88.003,11.56683229]
[1772464871100,11.68774442,88.129,88.012,11.56683229]
[1772464871896,11.68774442,88.129,88.014,11.56683229]
[1772464872089,11.68774442,88.129,88.018,11.56683229]
[1772464872285,11.68774442,88.129,88.01,29.53709284]
[1772464872286,11.68774442,88.169,88.032,11.56683229]
[1772464872491,11.68774442,88.149,88.041,11.56683229]
[1772464873689,11.68774442,88.129,88.041,11.56683229]
[1772464874492,10.32435448,88.149,88.041,11.56683229]
[1772464874685,10.32435448,88.129,88.041,11.56683229]
[1772464874885,10.32435448,88.129,88.01,62.0]
[1772464874886,6.87236649,88.11,88.017,10.22069232]
[1772464875093,10.32435448,88.109,88.017,10.22069232]
[1772464875494,10.32435448,88.129,88.017,10.22069232]
[1772464876592,10.32435448,88.089,87.993,10.22069232]
[1772464877702,10.37448253,88.049,87.961,10.92597571]
[1772464877900,227.06,88.151,87.903,10.92597571]
[1772464877901,10.37448253,88.029,87.903,10.92597571]
[1772464878207,6.87236649,88.06,87.903,10.92597571]
[1772464878208,10.37448253,87.989,87.903,10.92597571]
[1772464879204,10.37448253,87.969,87.871,10.92597571]
[1772464879602,10.37448253,87.989,87.871,10.92597571]
[1772464880011,10.37448253,87.969,87.871,10.92597571]
[1772464880707,10.29813513,88.087,87.814,227.06]
[1772464880708,10.37448253,88.009,87.885,10.92597571]
[1772464880907,10.37448253,88.009,87.894,10.92597571]
[1772464881209,158.944,88.088,87.901,10.92597571]
[1772464881411,10.37448253,88.066,87.921,10.92597571]
[1772464881609,10.37448253,88.064,87.921,10.92597571]
[1772464881811,10.37448253,88.052,87.921,10.92597571]
[1772464882010,10.37448253,88.029,87.921,10.92597571]
[1772464883109,10.37448253,88.027,87.921,10.92597571]
[1772464883304,158.851,88.139,87.861,10.92597571]
[1772464883305,10.37448253,88.009,87.861,10.92597571]
[1772464883706,10.227,88.008,87.861,10.92597571]
[1772464883906,10.37448253,88.009,87.869,10.92597571]
[1772464884214,10.37448253,88.009,87.891,10.92597571]
[1772464884916,10.37448253,88.033,87.896,10.92597571]
[1772464885114,10.37448253,88.033,87.911,10.92597571]
[1772464885318,10.37448253,88.033,87.91,62.0]
[1772464885319,10.37448253,88.033,87.921,10.92597571]
[1772464887417,10.37448253,88.026,87.881,10.92597571]
[1772464887814,10.37448253,88.024,87.881,10.92597571]
[1772464888119,10.37448253,88.019,87.884,10.92597571]
[1772464888619,158.886,88.12,87.884,10.92597571]
[1772464888620,10.37448253,88.017,87.884,10.92597571]
[1772464889018,19.61335586,88.02,87.884,10.92597571]
[1772464889019,10.37448253,88.01,87.884,10.92597571]
[1772464889219,10.37448253,87.998,87.884,10.92597571]
[1772464889515,10.37448253,87.989,87.884,10.92597571]
[1772464889919,10.37448253,87.987,87.859,10.92597571]
[1772464890824,10.37448253,87.978,87.859,10.92597571]
[1772464891016,10.37448253,87.965,87.833,10.92597571]
[1772464891221,159.163,87.966,87.833,10.92597571]
[1772464891222,10.37448253,87.949,87.833,10.92597571]
[1772464892316,10.37448253,87.947,87.833,10.92597571]
[1772464892521,10.37448253,87.945,87.801,10.92597571]
[1772464892721,10.37448253,87.919,87.801,10.92597571]
[1772464894218,10.37448253,87.919,87.821,10.92597571]
[1772464895230,10.37448253,87.912,87.797,10.92597571]
[1772464895421,10.37448253,87.91,87.797,10.92597571]
[1772464895623,10.37448253,87.905,87.797,10.92597571]
[1772464897227,10.37448253,87.905,87.801,10.92597571]
[1772464897624,10.37448253,87.933,87.819,10.92597571]
[1772464898024,10.37448253,87.981,87.831,10.92597571]
[1772464898223,10.37448253,87.973,87.841,10.92597571]
[1772464898424,159.199,87.947,87.817,10.92597571]
[1772464898820,10.234,87.947,87.817,10.92597571]
[1772464899019,169.432,87.947,87.817,10.92597571]
[1772464899221,19.61335586,87.92,87.789,10.92597571]
[1772464899424,10.237,87.915,87.789,10.92597571]
[1772464899730,19.61335586,87.89,87.789,10.92597571]
[1772464899931,10.37448253,87.889,87.762,10.92597571]
[1772464900428,10.37448253,87.888,87.762,10.92597571]
[1772464901222,159.317,87.882,87.762,10.92597571]
[1772464901422,10.37448253,87.881,87.762,10.92597571]